bitfinex/quotes_BTCUSD_20241120
["timestamp","ask_amount","ask_price","bid_price","bid_amount"]
[1732140072646,0.83794004,94360.0,94359.0,0.0008561]
[1732140072850,1.02782398,94360.0,94359.0,0.0008561]
[1732140073259,0.59676784,94360.0,94359.0,0.0008561]
[1732140073459,0.71735394,94360.0,94359.0,0.0008561]
[1732140073701,0.71708957,94360.0,94359.0,0.0008561]
[1732140074035,0.50906729,94360.0,94359.0,0.0008561]
[1732140074238,0.49906729,94360.0,94359.0,0.0008561]
[1732140074444,0.36667822,94360.0,94359.0,0.0008561]
[1732140074645,0.35667822,94360.0,94359.0,0.0008561]
[1732140074844,0.36667822,94360.0,94359.0,0.0008561]
[1732140075068,0.35667822,94360.0,94359.0,0.0008561]
[1732140075269,0.94669477,94360.0,94359.0,0.0008561]
[1732140075468,1.30055823,94360.0,94359.0,0.0008561]
[1732140075699,1.10870152,94360.0,94359.0,0.0008561]
[1732140075851,1.34612595,94360.0,94359.0,0.0008561]
[1732140076051,1.10870152,94360.0,94359.0,0.0008561]
[1732140077548,0.92003897,94360.0,94359.0,0.0008561]
[1732140078389,0.79945287,94360.0,94359.0,0.0008561]
[1732140078569,0.98922266,94360.0,94359.0,0.0008561]
[1732140078953,0.91992266,94360.0,94359.0,0.0008561]
[1732140079180,0.61245201,94360.0,94359.0,0.0008561]
[1732140079578,0.75477213,94360.0,94359.0,0.0008561]
[1732140079806,0.67236538,94360.0,94359.0,0.0008561]
[1732140080011,0.88028911,94360.0,94359.0,0.0008561]
[1732140080449,0.63911691,94360.0,94359.0,0.0008561]
[1732140080590,0.40945916,94360.0,94359.0,0.0008561]
[1732140080804,0.50945916,94360.0,94359.0,0.0008561]
[1732140081008,0.85970051,94360.0,94359.0,0.0008561]
[1732140081282,1.04946743,94360.0,94359.0,0.0008561]
[1732140081853,1.15852998,94360.0,94359.0,0.0008561]
[1732140082703,1.19720712,94360.0,94359.0,0.0008561]
[1732140083077,1.0074402,94360.0,94359.0,0.0008561]
[1732140083311,1.19720712,94360.0,94359.0,0.0008561]
[1732140083540,1.21720712,94360.0,94359.0,0.0008561]
[1732140084495,1.0274402,94360.0,94359.0,0.0008561]
[1732140084694,1.06813128,94360.0,94359.0,0.0008561]
[1732140084861,0.95906873,94360.0,94359.0,0.0008561]
[1732140086439,0.95906873,94360.0,94356.0,0.0008561]
[1732140086440,0.11598,94357.0,94356.0,0.0008561]
[1732140086666,0.24609512,94357.0,94356.0,0.0008561]
[1732140087085,0.59633647,94357.0,94356.0,0.0008561]
[1732140087291,0.98140121,94357.0,94356.0,0.0008561]
[1732140087731,0.82490368,94357.0,94356.0,0.0008561]
[1732140088352,0.63531439,94357.0,94356.0,0.0008561]
[1732140088716,0.63531439,94357.0,94356.0,0.0810561]
[1732140088717,0.7765606,94357.0,94356.0,0.0810561]
[1732140088929,0.66727584,94357.0,94356.0,0.0810561]
[1732140089294,0.6672634,94357.0,94356.0,0.0810561]
[1732140089653,0.66730315,94357.0,94356.0,0.0810561]
[1732140090009,0.66730365,94357.0,94356.0,0.0810561]
[1732140090238,0.66734367,94357.0,94356.0,0.0810561]
[1732140090677,0.66734426,94357.0,94356.0,0.0810561]
[1732140090881,0.85726761,94357.0,94356.0,0.0810561]
[1732140091099,0.66734426,94357.0,94356.0,0.0810561]
[1732140091269,0.85726761,94357.0,94356.0,0.0810561]
[1732140091449,0.66734426,94357.0,94356.0,0.0810561]
[1732140091664,0.31673371,94357.0,94356.0,0.0810561]
[1732140092104,0.4592225,94357.0,94356.0,0.0810561]
[1732140092505,0.66745433,94357.0,94356.0,0.0810561]
[1732140092713,0.85737768,94357.0,94356.0,0.0810561]
[1732140092931,0.85747257,94357.0,94356.0,0.0810561]
[1732140093396,0.66745315,94357.0,94356.0,0.0810561]
[1732140093609,0.85751365,94357.0,94356.0,0.0810561]
[1732140093952,0.66745315,94357.0,94356.0,0.0810561]
[1732140094426,0.64445315,94357.0,94356.0,0.0810561]
[1732140095133,0.64791412,94357.0,94356.0,0.0810561]
[1732140095386,0.45783456,94357.0,94356.0,0.0810561]
[1732140096151,0.10711512,94357.0,94356.0,0.0810561]
[1732140096386,0.20215522,94357.0,94356.0,0.0810561]
[1732140096606,0.10711512,94357.0,94356.0,0.0610561]
[1732140098064,0.21309512,94357.0,94356.0,0.0610561]
[1732140098290,0.30815112,94357.0,94356.0,0.0610561]
[1732140098988,0.21309512,94357.0,94356.0,0.0610561]
[1732140100165,0.21309512,94357.0,94355.0,0.0008559]
[1732140100166,0.105981,94356.0,94355.0,0.0008559]
[1732140100392,0.21309612,94356.0,94355.0,0.0008559]
[1732140100873,0.67775418,94356.0,94355.0,0.0008559]
[1732140101104,0.91539419,94356.0,94355.0,0.0008559]
[1732140101361,0.67775418,94356.0,94355.0,0.0008559]
[1732140101583,0.91552033,94356.0,94355.0,0.0008559]
[1732140101809,0.67775418,94356.0,94355.0,0.0008559]
[1732140104273,0.91551627,94356.0,94355.0,0.0008559]
[1732140104499,0.67775418,94356.0,94355.0,0.0008559]
[1732140107122,0.67784699,94356.0,94355.0,0.0008559]
[1732140107827,0.73545223,94356.0,94355.0,0.0008559]
[1732140108049,0.67784699,94356.0,94355.0,0.0008559]
[1732140112577,0.96325672,94356.0,94355.0,0.0008559]
[1732140113439,0.71652413,94356.0,94355.0,0.0008559]
[1732140113847,0.18662659,94350.0,94349.0,0.0730122]
[1732140114051,0.64485399,94350.0,94349.0,0.0730122]
[1732140115351,0.88269862,94350.0,94349.0,0.0730122]
[1732140115796,0.88290256,94350.0,94349.0,0.0730122]
[1732140117766,0.64500796,94350.0,94349.0,0.0730122]
[1732140118801,0.8829322,94350.0,94349.0,0.0730122]
[1732140119415,0.56436937,94350.0,94349.0,0.0730122]
[1732140120845,0.60821927,94350.0,94349.0,0.0730122]
[1732140121072,0.60826,94350.0,94349.0,0.0738684]
[1732140122607,0.149007,94333.0,94332.0,0.0017122]
[1732140122761,0.87076973,94333.0,94332.0,0.0017122]
[1732140123010,0.74616969,94333.0,94332.0,0.0017122]
[1732140123208,0.69749255,94333.0,94332.0,0.0017122]
[1732140123650,0.68749255,94333.0,94332.0,0.0017122]
[1732140124032,1.06356295,94333.0,94332.0,0.0017122]
[1732140124230,0.67212414,94333.0,94332.0,0.0017122]
[1732140124430,0.77813114,94333.0,94332.0,0.0017122]
[1732140125718,0.78013114,94333.0,94332.0,0.0017122]
[1732140126177,0.77013114,94333.0,94332.0,0.0017122]
[1732140126377,0.78013114,94333.0,94332.0,0.0017122]
[1732140126790,0.82720772,94333.0,94332.0,0.0017122]
[1732140127143,1.06483257,94333.0,94332.0,0.0017122]
[1732140127379,1.06583257,94333.0,94332.0,0.0017122]
[1732140127749,1.10797063,94333.0,94332.0,0.0017122]
[1732140127954,0.87034578,94333.0,94332.0,0.0017122]
[1732140128140,1.07085799,94333.0,94332.0,0.0017122]
[1732140128347,0.8332692,94333.0,94332.0,0.0017122]
[1732140128749,1.07085799,94333.0,94332.0,0.0017122]
[1732140128944,0.8332692,94333.0,94332.0,0.0017122]
[1732140129798,0.87194634,94333.0,94332.0,0.0017122]
[1732140130254,0.88900307,94333.0,94332.0,0.0017122]
[1732140130665,1.12659186,94333.0,94332.0,0.0017122]
[1732140130822,0.88900307,94333.0,94332.0,0.0017122]
[1732140131206,0.83690307,94333.0,94332.0,0.0017122]
[1732140131388,0.85826448,94333.0,94332.0,0.0017122]
[1732140131644,0.08063859,94314.0,94313.0,0.0758]
[1732140132021,0.08063859,94314.0,94313.0,0.181829]
[1732140138818,0.01,94317.0,94313.0,0.0758]
[1732140139085,0.10711512,94316.0,94314.0,0.169645]
[1732140139286,0.10711512,94316.0,94313.0,0.0758]
[1732140139287,0.09490568,94331.0,94316.0,0.0756]
[1732140139479,0.10711512,94330.0,94316.0,0.0756]
[1732140139815,0.10711512,94330.0,94300.0,0.25030759]
[1732140139816,0.08063859,94328.0,94300.0,0.25030759]
[1732140140005,0.10711512,94327.0,94325.0,0.106015]
[1732140140143,0.11711512,94327.0,94311.0,0.16985]
[1732140140347,0.11711512,94327.0,94318.0,0.106023]
[1732140140348,0.08063859,94319.0,94318.0,0.106023]
[1732140140552,0.10711512,94319.0,94318.0,0.106023]
[1732140141157,0.10711512,94319.0,94316.0,0.106026]
[1732140141382,0.10711512,94318.0,94316.0,0.106026]
[1732140141757,0.10711512,94318.0,94317.0,0.106025]
[1732140141980,0.11711512,94318.0,94317.0,0.106025]
[1732140142433,0.01,94318.0,94317.0,0.106025]
[1732140142744,0.01,94318.0,94317.0,0.226825]
[1732140145079,0.04237123,94321.0,94320.0,0.106022]
[1732140145608,0.212015,94333.0,94317.0,0.279837]
[1732140145609,0.08063859,94335.0,94330.0,0.0763]
[1732140145807,0.10711512,94334.0,94330.0,0.0763]
[1732140146020,0.08063859,94335.0,94331.0,0.159014]
[1732140146021,0.04275842,94335.0,94331.0,0.159014]
[1732140146167,0.09490331,94347.0,94332.0,0.0462]
[1732140146505,0.14406756,94350.0,94344.0,0.105995]
[1732140146506,0.10711512,94345.0,94344.0,0.105995]
[1732140146956,0.10711512,94345.0,94339.0,0.159001]
[1732140146957,0.04398488,94350.0,94349.0,0.105989]
[1732140147160,0.04398488,94350.0,94349.0,0.182289]
[1732140153036,0.04398488,94350.0,94349.0,0.172289]
[1732140153781,0.1511,94350.0,94349.0,0.095989]
[1732140154186,0.257088,94350.0,94345.0,0.105992]
[1732140154387,0.1511,94350.0,94346.0,0.105992]
[1732140155019,0.1511,94350.0,94342.0,0.158995]
[1732140155223,0.1511,94350.0,94349.0,0.105989]
[1732140157423,0.105989,94349.0,94344.0,0.105994]
[1732140157597,0.1511,94350.0,94343.0,0.158994]
[1732140157802,0.1511,94350.0,94344.0,0.158992]
[1732140158023,0.1511,94350.0,94346.0,0.105992]
[1732140158348,0.1511,94350.0,94340.0,0.0758]
[1732140158349,0.1511,94350.0,94341.0,0.158997]
[1732140158505,0.1511,94350.0,94349.0,0.105989]
[1732140159330,0.1511,94350.0,94349.0,0.1068453]
[1732140161066,0.257088,94350.0,94349.0,0.0008563]
[1732140161625,0.31876514,94350.0,94349.0,0.0008563]
[1732140161865,0.32876514,94350.0,94349.0,0.0008563]
[1732140163959,0.33076514,94350.0,94349.0,0.0008563]
[1732140164596,0.1641,94350.0,94349.0,0.0008563]
[1732140165971,0.270088,94350.0,94349.0,0.0008563]
[1732140166233,0.42191358,94350.0,94349.0,0.0008563]
[1732140166445,0.42091358,94350.0,94349.0,0.0008563]
[1732140166674,0.41891358,94350.0,94349.0,0.0008563]
[1732140167390,0.33876514,94350.0,94349.0,0.0008563]
[1732140167596,0.34176514,94350.0,94349.0,0.0008563]
[1732140167852,0.39146514,94350.0,94349.0,0.0008563]
[1732140168077,0.46706514,94350.0,94349.0,0.0008563]
[1732140168332,0.56189772,94350.0,94349.0,0.0008563]
[1732140168555,0.71837656,94350.0,94349.0,0.0008563]
[1732140168774,0.71837656,94350.0,94324.0,0.106016]
[1732140168775,0.106011,94330.0,94324.0,0.106016]
[1732140169019,0.10711512,94329.0,94324.0,0.106016]
[1732140169235,0.10711512,94329.0,94321.0,0.0764]
[1732140169454,0.21312712,94329.0,94323.0,0.106017]
[1732140169692,0.21312712,94329.0,94324.0,0.106016]
[1732140169911,0.10711512,94329.0,94325.0,0.106016]
[1732140170421,0.10711512,94329.0,94322.0,0.159029]
[1732140170642,0.10711512,94329.0,94321.0,0.0764]
[1732140170643,0.10711512,94329.0,94328.0,0.106013]
[1732140171019,0.10711512,94329.0,94317.0,0.206936]
[1732140171020,0.10711512,94329.0,94316.0,0.159039]
[1732140171022,0.10711512,94329.0,94315.0,0.0764]
[1732140171023,0.129013,94328.0,94322.0,0.106018]
[1732140171226,0.10711512,94327.0,94322.0,0.106018]
[1732140171821,0.10711512,94327.0,94318.0,0.159036]
[1732140172054,0.10711512,94327.0,94326.0,0.106015]
[1732140173259,0.04219932,94329.0,94328.0,0.181713]
[1732140173829,0.09485657,94339.0,94333.0,0.106006]
[1732140173830,0.023,94337.0,94333.0,0.106006]
[1732140174072,0.10711512,94335.0,94334.0,0.106005]
[1732140174320,0.85426786,94347.0,94335.0,0.106005]
[1732140174321,0.10711512,94336.0,94335.0,0.106005]
[1732140175055,0.0424531,94347.0,94328.0,0.0757]
[1732140175312,0.0424531,94347.0,94321.0,0.12075094]
[1732140175313,0.0424531,94347.0,94346.0,0.105992]
[1732140175583,0.09656917,94350.0,94344.0,0.181694]
[1732140175584,0.01,94349.0,94344.0,0.181694]
[1732140176506,0.023,94349.0,94344.0,0.181694]
[1732140176751,0.10711512,94348.0,94339.0,0.159001]
[1732140177020,0.105996,94343.0,94338.0,0.106001]
[1732140177297,0.105996,94343.0,94331.0,0.0757]
[1732140177298,0.10711512,94342.0,94331.0,0.0757]
[1732140177538,0.106006,94334.0,94331.0,0.0757]
[1732140178043,0.106003,94337.0,94331.0,0.181709]
[1732140178284,0.106008,94332.0,94331.0,0.0757]
[1732140179288,0.10711512,94336.0,94331.0,0.0757]
[1732140179289,0.106007,94333.0,94331.0,0.0757]
[1732140181027,0.106008,94332.0,94331.0,0.0757]
[1732140182142,0.212012,94334.0,94325.0,0.0757]
[1732140182143,0.106011,94330.0,94325.0,0.0757]
[1732140182587,0.106011,94330.0,94325.0,0.181716]
[1732140182839,0.106008,94332.0,94331.0,0.0008563]
[1732140185230,0.14924319,94336.0,94331.0,0.0008563]
[1732140185450,0.106008,94333.0,94331.0,0.0008563]
[1732140185723,0.106008,94332.0,94331.0,0.0008563]
[1732140187021,0.106007,94333.0,94331.0,0.0008563]
[1732140187284,0.14924319,94336.0,94331.0,0.0008563]
[1732140187542,0.106008,94333.0,94331.0,0.0008563]
[1732140188315,0.14924319,94336.0,94331.0,0.0008563]
[1732140188542,0.0949562,94342.0,94331.0,0.0008563]
[1732140188824,0.10711512,94341.0,94333.0,0.169611]
[1732140189069,0.0949562,94347.0,94344.0,0.0772]
[1732140189320,0.0017126,94350.0,94344.0,0.0772]
[1732140189321,0.2026568,94350.0,94344.0,0.0772]
[1732140189565,0.10711512,94349.0,94344.0,0.0772]
[1732140190570,0.10711512,94349.0,94344.0,0.246791]
[1732140191072,0.04565885,94350.0,94344.0,0.0772]
[1732140191321,0.04565885,94350.0,94345.0,0.16959]
[1732140191545,0.0017126,94350.0,94349.0,0.105989]
[1732140194227,0.0017126,94350.0,94344.0,0.1233]
[1732140194446,0.0017126,94350.0,94345.0,0.105993]
[1732140194660,0.0017126,94350.0,94347.0,0.105991]
[1732140195069,0.0017126,94350.0,94344.0,0.1233]
[1732140195488,0.0017126,94350.0,94349.0,0.105989]
[1732140196474,0.0017126,94350.0,94347.0,0.169586]
[1732140196475,0.0017126,94350.0,94347.0,0.275576]
[1732140196701,0.0017126,94350.0,94348.0,0.10599]
[1732140196923,0.0017126,94350.0,94345.0,0.105993]
[1732140197131,0.0017126,94350.0,94344.0,0.1233]
[1732140197333,0.0017126,94350.0,94347.0,0.10599]
[1732140197987,0.0017126,94350.0,94345.0,0.16959]
[1732140198600,0.0017126,94350.0,94348.0,0.10599]
[1732140199274,0.0017126,94350.0,94347.0,0.10599]
[1732140199732,0.0017126,94350.0,94344.0,0.1233]
[1732140199928,0.0017126,94350.0,94348.0,0.10599]
[1732140200861,0.1077016,94350.0,94344.0,0.229295]
[1732140201074,0.0017126,94350.0,94345.0,0.105993]
[1732140201286,0.0017126,94350.0,94344.0,0.1233]
[1732140201486,0.0017126,94350.0,94347.0,0.105991]
[1732140202457,0.0017126,94350.0,94348.0,0.10599]
[1732140202654,0.0017126,94350.0,94340.0,0.105998]
[1732140202655,0.023,94345.0,94340.0,0.105998]
[1732140202858,0.023,94345.0,94340.0,0.105999]
[1732140203440,0.128992,94347.0,94339.0,0.2756]
[1732140203636,0.128992,94347.0,94342.0,0.105997]
[1732140204515,0.128992,94347.0,94341.0,0.105998]
[1732140204684,0.023,94348.0,94342.0,0.105996]
[1732140205104,0.023,94348.0,94343.0,0.105995]
[1732140205697,0.12899,94348.0,94343.0,0.105995]
[1732140207086,0.023,94348.0,94341.0,0.286195]
[1732140207287,0.023,94348.0,94347.0,0.105991]
[1732140207418,0.0017126,94350.0,94345.0,0.180187]
[1732140207622,0.0017126,94350.0,94349.0,0.233489]
[1732140210311,0.0247126,94350.0,94349.0,0.233489]
[1732140212389,0.0017126,94350.0,94349.0,0.233489]
[1732140213156,0.0017126,94350.0,94349.0,0.243489]
[1732140213359,0.0017126,94350.0,94349.0,0.233489]
[1732140214416,0.0247126,94350.0,94349.0,0.233489]
[1732140215635,0.0251126,94350.0,94349.0,0.233489]
[1732140215852,0.0021126,94350.0,94349.0,0.233489]
[1732140218487,0.0251126,94350.0,94349.0,0.184189]
[1732140218698,0.023,94349.0,94346.0,0.180186]
[1732140219130,0.023,94349.0,94348.0,0.10599]
[1732140232755,0.023,94349.0,94348.0,0.1068458]
[1732140238094,0.023,94349.0,94348.0,0.12660874]
[1732140239535,0.023,94349.0,94348.0,0.12661311]
[1732140240065,0.023,94349.0,94348.0,0.1068458]
[1732140245991,0.023,94349.0,94348.0,0.1534458]
[1732140249009,0.0021126,94350.0,94349.0,0.105989]
[1732140249239,0.0021126,94350.0,94349.0,0.10704876]
[1732140249400,0.0021126,94350.0,94349.0,0.18784876]
[1732140249551,0.0021126,94350.0,94349.0,0.23474876]
[1732140249754,0.0021126,94350.0,94349.0,0.233689]
[1732140250158,0.0021126,94350.0,94349.0,0.243689]
[1732140252802,0.0021126,94350.0,94349.0,0.28644513]
[1732140253005,0.0021126,94350.0,94349.0,0.29644513]
[1732140255592,0.0021126,94350.0,94349.0,0.40356025]
[1732140255830,0.0021126,94350.0,94349.0,0.50356025]
[1732140259836,0.0021126,94350.0,94349.0,0.50556025]
[1732140261100,0.0021126,94350.0,94349.0,0.58617085]
[1732140261362,6e-07,94350.0,94349.0,0.66478145]
[1732140261605,6e-07,94350.0,94349.0,0.58417085]
[1732140263168,4e-07,94356.0,94355.0,0.55497198]
[1732140263377,4e-07,94356.0,94355.0,0.46029712]
[1732140263586,4e-07,94356.0,94355.0,0.45829712]
[1732140264006,4e-07,94356.0,94355.0,0.46029712]
[1732140271100,4e-07,94356.0,94355.0,0.54090772]
[1732140271957,4e-07,94356.0,94355.0,0.46029712]
[1732140272163,0.0017124,94359.0,94355.0,0.46029712]
[1732140272164,8e-07,94359.0,94358.0,0.227979]
[1732140272368,8e-07,94359.0,94358.0,0.46339412]
[1732140274049,8e-07,94359.0,94358.0,0.23541512]
[1732140274268,0.0012703,94370.0,94369.0,0.105967]
[1732140274425,0.0012703,94370.0,94369.0,0.26208212]
[1732140277594,0.0012703,94370.0,94369.0,0.105967]
[1732140278942,0.0242703,94370.0,94369.0,0.105967]
[1732140279721,0.0715703,94370.0,94369.0,0.105967]
[1732140282000,0.0784,94367.0,94349.0,0.1704378]
[1732140282208,0.1014,94367.0,94366.0,0.10597]
[1732140283219,0.1820106,94367.0,94366.0,0.10597]
[1732140288648,0.0242703,94370.0,94369.0,0.105967]
[1732140288897,0.0012703,94370.0,94369.0,0.105967]
[1732140289902,0.0818809,94370.0,94369.0,0.105967]
[1732140292493,0.0012703,94370.0,94369.0,0.105967]
[1732140296797,0.0818809,94370.0,94369.0,0.105967]
[1732140297244,0.1048809,94370.0,94369.0,0.105967]
[1732140300614,0.0012703,94370.0,94369.0,0.105967]
[1732140300846,0.0012703,94370.0,94369.0,0.10702653]
[1732140301380,0.0012703,94370.0,94369.0,0.105967]
[1732140304314,0.0012703,94370.0,94369.0,0.21308212]
[1732140305841,0.0012703,94370.0,94369.0,0.21393772]
[1732140307802,3e-07,94370.0,94369.0,0.56581399]
[1732140308073,3e-07,94370.0,94369.0,0.57879196]
[1732140308492,3e-07,94370.0,94369.0,0.48414399]
[1732140308704,3e-07,94370.0,94369.0,0.57876289]
[1732140309362,3e-07,94370.0,94369.0,0.48414399]
[1732140309785,5e-07,94371.0,94370.0,0.4128756]
[1732140310043,5e-07,94371.0,94370.0,0.51999072]
[1732140310283,5e-07,94371.0,94370.0,0.61458935]
[1732140310520,5e-07,94371.0,94370.0,0.53397875]
[1732140310792,5e-07,94371.0,94370.0,0.61458935]
[1732140311561,5e-07,94371.0,94370.0,0.51999072]
[1732140312313,0.0017122,94374.0,94373.0,0.328162]
[1732140312314,7e-07,94374.0,94373.0,0.328162]
[1732140312546,7e-07,94374.0,94373.0,0.62429524]
[1732140312801,7e-07,94374.0,94373.0,0.43527712]
[1732140313288,0.0017118,94395.0,94394.0,0.4080486]
[1732140313529,0.0017118,94395.0,94394.0,0.51516372]
[1732140313530,8e-07,94395.0,94394.0,0.51516372]
[1732140313996,8e-07,94395.0,94394.0,0.43455312]
[1732140317846,8e-07,94395.0,94394.0,0.47820383]
[1732140319018,8e-07,94395.0,94394.0,0.35670383]
[1732140329764,8e-07,94395.0,94394.0,0.35755923]
[1732140331781,8e-07,94395.0,94394.0,0.36069245]
[1732140339289,0.3256114,94400.0,94399.0,0.205933]
[1732140339804,0.3256114,94400.0,94399.0,0.20903066]
[1732140340012,0.2450008,94400.0,94399.0,0.20903066]
[1732140341157,0.3256114,94400.0,94399.0,0.10903066]
[1732140341397,0.575022,94400.0,94399.0,0.00309766]
[1732140341641,0.81921343,94400.0,94399.0,0.00309766]
[1732140341862,0.266737,94395.0,94394.0,0.0008554]
[1732140342064,0.4279582,94395.0,94394.0,0.0008554]
[1732140343863,0.3220212,94395.0,94394.0,0.0008554]
[1732140344740,0.28141174,94395.0,94394.0,0.0008554]
[1732140345363,0.38734874,94395.0,94394.0,0.0008554]
[1732140348612,0.28141174,94395.0,94394.0,0.0008554]
[1732140348828,0.38734874,94395.0,94394.0,0.0008554]
[1732140349024,0.43079853,94395.0,94394.0,0.0008554]
[1732140349241,0.32486153,94395.0,94394.0,0.0008554]
[1732140349642,0.43079853,94395.0,94394.0,0.0008554]
[1732140351119,0.32486153,94395.0,94394.0,0.0008554]
[1732140351318,0.32486153,94395.0,94394.0,0.00385723]
[1732140351734,0.32486153,94395.0,94394.0,0.0008554]
[1732140352407,0.32486153,94395.0,94394.0,0.00385723]
[1732140352576,0.32486153,94395.0,94394.0,0.0008554]
[1732140352782,0.43079853,94395.0,94394.0,0.00385723]
[1732140352919,0.43079853,94395.0,94394.0,0.0008554]
[1732140353137,0.43079853,94395.0,94394.0,0.00385723]
[1732140353354,0.43079853,94395.0,94394.0,0.0008554]
[1732140354833,0.72828329,94395.0,94372.0,0.16954]
[1732140355045,0.15561174,94373.0,94372.0,0.105963]
[1732140355251,0.15561174,94373.0,94372.0,0.10899093]
[1732140355462,0.15361174,94373.0,94372.0,0.10899093]
[1732140356290,0.15361174,94373.0,94372.0,0.00302793]
[1732140356498,0.15361174,94373.0,94371.0,0.105964]
[1732140356499,0.025,94372.0,94371.0,0.105964]
[1732140357422,0.033,94372.0,94371.0,0.105964]
[1732140357623,0.01,94372.0,94371.0,0.105964]
[1732140359375,0.01,94372.0,94368.0,0.169548]
[1732140359376,0.05220984,94372.0,94368.0,0.169548]
[1732140359593,0.05220984,94372.0,94358.0,0.169565]
[1732140359594,0.150965,94370.0,94358.0,0.169565]
[1732140359800,0.53593617,94370.0,94349.0,0.0008558]
[1732140360035,0.44393802,94370.0,94354.0,0.105982]
[1732140360262,0.44393802,94370.0,94352.0,0.169576]
[1732140360468,0.44393802,94370.0,94357.0,0.10598]
[1732140360682,0.44393802,94370.0,94358.0,0.105978]
[1732140360888,0.44393802,94370.0,94355.0,0.1704267]
[1732140361111,0.41532443,94370.0,94355.0,0.1704267]
[1732140361325,0.41532443,94370.0,94357.0,0.105979]
[1732140361539,0.41632443,94370.0,94357.0,0.105979]
[1732140361753,0.41632443,94370.0,94364.0,0.105971]
[1732140361754,0.38518012,94370.0,94364.0,0.105971]
[1732140361961,0.01,94363.0,94362.0,0.169558]
[1732140362179,0.035,94363.0,94362.0,0.105974]
[1732140362382,0.035,94363.0,94362.0,0.10902275]
[1732140362604,0.035,94363.0,94362.0,0.00304875]
[1732140362812,0.035,94363.0,94362.0,0.10902275]
[1732140363014,0.035,94363.0,94362.0,0.10147901]
[1732140363216,0.035,94363.0,94362.0,0.0030396]
[1732140363416,0.035,94363.0,94362.0,0.105974]
[1732140363635,0.045,94363.0,94362.0,0.10890665]
[1732140363827,0.16561174,94363.0,94362.0,0.10890665]
[1732140364043,0.20930064,94363.0,94362.0,0.10890665]
[1732140364465,0.0536889,94363.0,94362.0,0.10890665]
[1732140364873,0.18430064,94363.0,94362.0,0.10890665]
[1732140365508,0.17430064,94363.0,94362.0,0.10890665]
[1732140366580,0.17430064,94363.0,94362.0,0.10976265]
[1732140366987,0.18430064,94363.0,94362.0,0.10976265]
[1732140367398,0.18430064,94363.0,94362.0,0.00378865]
[1732140367617,0.18630064,94363.0,94362.0,0.00378865]
[1732140367838,0.18630064,94363.0,94362.0,0.10683]
[1732140368248,0.18630064,94363.0,94362.0,0.10975895]
[1732140369329,0.18630064,94363.0,94362.0,0.00378495]
[1732140369539,0.18630064,94363.0,94362.0,0.10975895]
[1732140372925,0.29227364,94363.0,94362.0,0.00378495]
[1732140373132,0.31527364,94363.0,94362.0,0.00378495]
[1732140373336,0.20930064,94363.0,94362.0,0.000856]
[1732140373543,0.31527364,94363.0,94362.0,0.000856]
[1732140373773,0.60798024,94363.0,94362.0,0.00372678]
[1732140374005,0.60798024,94363.0,94362.0,0.000856]
[1732140375115,0.52128538,94363.0,94362.0,0.000856]
[1732140380248,0.27159274,94356.0,94355.0,0.0008557]
[1732140380361,0.002,94340.0,94315.0,0.14094592]
[1732140380624,0.12061174,94338.0,94337.0,0.106002]
[1732140384978,0.023,94340.0,94339.0,0.106]
[1732140385239,0.15361174,94340.0,94339.0,0.106]
[1732140386466,0.15561174,94340.0,94339.0,0.106]
[1732140387136,0.15361174,94340.0,94339.0,0.106]
[1732140387280,0.14361174,94340.0,94339.0,0.106]
[1732140387488,0.15361174,94340.0,94339.0,0.106]
[1732140388855,0.15361174,94340.0,94337.0,0.07660775]
[1732140389055,0.15361174,94340.0,94331.0,0.148413]
[1732140389263,0.033,94340.0,94339.0,0.106]
[1732140389648,0.025,94340.0,94339.0,0.106]
[1732140389859,0.035,94340.0,94339.0,0.106]
[1732140390498,0.035,94340.0,94339.0,0.1068563]
[1732140390706,0.11564187,94340.0,94339.0,0.1068563]
[1732140391069,0.19628374,94340.0,94339.0,0.1068563]
[1732140391479,0.20628374,94340.0,94339.0,0.0008563]
[1732140391657,0.31228274,94340.0,94339.0,0.0008563]
[1732140392860,0.20628374,94340.0,94339.0,0.0008563]
[1732140393307,0.20628374,94340.0,94339.0,0.00375966]
[1732140394469,0.20428374,94340.0,94339.0,0.00375966]
[1732140394952,0.20628374,94340.0,94339.0,0.00375966]
[1732140395141,0.28418374,94340.0,94339.0,0.00375966]
[1732140396716,0.27418374,94340.0,94339.0,0.00375966]
[1732140396883,0.28418374,94340.0,94339.0,0.00375966]
[1732140397875,0.39018274,94340.0,94339.0,0.00375966]
[1732140398597,0.28418374,94340.0,94339.0,0.00375966]
[1732140398829,0.26118374,94340.0,94339.0,0.0008563]
[1732140399050,0.36718274,94340.0,94339.0,0.00376008]
[1732140399287,0.26118374,94340.0,94339.0,0.0008563]
[1732140399519,0.26118374,94340.0,94339.0,0.00376008]
[1732140400455,0.26118374,94340.0,94339.0,0.10976008]
[1732140404044,0.25918374,94340.0,94339.0,0.10976008]
[1732140404255,0.24918374,94340.0,94339.0,0.10976008]
[1732140404511,0.25918374,94340.0,94339.0,0.10976008]
[1732140405512,0.25918374,94340.0,94339.0,0.10868025]
[1732140407492,0.26118374,94340.0,94339.0,0.10868025]
[1732140407697,0.26118374,94340.0,94339.0,0.00268025]
[1732140407956,0.002,94332.0,94331.0,0.106008]
[1732140408175,0.012,94332.0,94331.0,0.106008]
[1732140408384,0.012,94332.0,94331.0,0.10891592]
[1732140409390,0.18712837,94332.0,94331.0,0.00290792]
[1732140409618,0.18712837,94332.0,94313.0,0.0008564]
[1732140409619,0.023,94329.0,94324.0,0.106017]
[1732140409837,0.09064187,94322.0,94321.0,0.10602]
[1732140410415,0.01,94322.0,94321.0,0.10602]
[1732140410795,0.01,94321.0,94320.0,0.106022]
[1732140411414,0.08064187,94324.0,94323.0,0.106018]
[1732140412007,0.09064187,94324.0,94323.0,0.106018]
[1732140414565,0.08064187,94324.0,94323.0,0.106018]
[1732140415634,0.12961549,94332.0,94331.0,0.106009]
[1732140415635,0.04381549,94332.0,94331.0,0.106009]
[1732140415848,0.05381549,94332.0,94331.0,0.106009]
[1732140416073,0.01,94332.0,94331.0,0.106009]
[1732140416273,0.09064187,94338.0,94330.0,0.10601]
[1732140416274,0.01,94331.0,94330.0,0.10601]
[1732140417763,0.04324752,94338.0,94337.0,0.106002]
[1732140418020,0.001713,94340.0,94339.0,0.106]
[1732140422452,0.001713,94340.0,94339.0,0.10891419]
[1732140425510,0.001713,94340.0,94339.0,0.10977069]
[1732140428349,0.001713,94340.0,94337.0,0.04514835]
[1732140428572,0.001713,94340.0,94339.0,0.00280211]